Cogmind - Beta 10.2 @@@ ROGUE MODE // 2021.08.21 @ 19:16:26 Player: elricsfate Result: Destroyed by as-84538 with Assembled F-torch Performance ------------- Evolutions (0) 0 Regions Visited (2) 400 Robots Destroyed (17) 85 Value Destroyed (405) 405 Prototype IDs (0) 0 Alien Tech Used (0) 0 Bonus (0) 0 TOTAL SCORE: 890 Bonus ------- None Cogmind --------- Core Integrity 0/250 Matter 300/300 Energy 100/100 System Corruption 0% Temperature Cool (20) Movement Walking (120) Location -10/Mines Parts ------- > --- POWER (1) -------- (None) > --- PROPULSION (2) --- Aluminum Leg Aluminum Leg > --- UTILITY (2) ------ Medium Storage Unit Targeting Computer > --- WEAPON (2) ------- (None) > --- INVENTORY (8) ---- Heat Sink Small Storage Unit Medium Storage Unit Large Storage Unit ECM Suite Light Assault Rifle Peak State ------------ > --- POWER ------------ Light Ion Engine > --- PROPULSION ------- Compact Wheel Compact Wheel > --- UTILITY ---------- Small Storage Unit Targeting Computer > --- WEAPON ----------- Medium Laser Small Laser > --- INVENTORY -------- Light Ion Engine Aluminum Leg Aluminum Leg EM Pulse Gun [Rating: 7] Favorites ----------- Power Light Ion Engine Engine Light Ion Engine Propulsion Compact Wheel Leg Aluminum Leg Wheel Compact Wheel Utility Targeting Computer Storage Medium Storage Unit Processor Targeting Computer Weapon EM Pulse Gun Energy Gun EM Pulse Gun Ballistic Gun Light Assault Rifle Build | -11 -10 -10 ------- Run | Scr Mat Min Slots Evolved . | . . . Power . | . . . Propulsion . | . . . Utility . | . . . Weapon . | . . . Parts Attached 17 | 6 6 5 Power 4 | 1 2 1 Engine 4 | 1 2 1 Core . | . . . Reactor . | . . . Propulsion 4 | 2 . 2 Treads . | . . . Leg 2 | . . 2 Wheel 2 | 2 . . Hover . | . . . Flight . | . . . Utility 3 | 1 2 . Device . | . . . Storage 2 | 1 1 . Processor 1 | . 1 . Hackware . | . . . Protection . | . . . Artifact . | . . . Weapon 6 | 2 2 2 Energy Gun 4 | 2 2 . Energy Cannon . | . . . Ballistic Gun 2 | . . 2 Ballistic Cannon . | . . . Launcher . | . . . Special Weapon . | . . . Impact Weapon . | . . . Slashing Weapon . | . . . Piercing Weapon . | . . . Special Melee Weapon . | . . . Unidentified Prototypes . | . . . Parts Lost 10 | . 4 6 Power 3 | . 1 2 Propulsion 1 | . 1 . Utility . | . . . Weapon 6 | . 2 4 Highest Loss Streak 4 | . 4 3 Average Slot Usage (%) 90 | . 87 95 Engine 13 | . 13 13 Leg 9 | . . 26 Wheel 12 | . 18 . Storage 14 | . 14 14 Processor 13 | . 13 14 Energy Gun 20 | . 26 8 Ballistic Gun 5 | . . 17 Naked Turns . | . . . Heaviest Build 18 | 10 18 16 Greatest Support 32 | 32 32 20 Greatest Overweight (x) 1 | . 1 . Average Overweight (x) . | . . . Largest Inventory Capacity 8 | 6 8 8 Average Capacity 7 | 5 6 8 Most Carried 8 | 4 8 8 Average Carried 6 | 2 6 6 Final Capacity 8 | 6 8 8 Final Carried 8 | 4 8 6 Class Distribution -------------------- 100% | Mutant Dominant Class ---------------- Mutant | -10/Materials Mutant | -10/Mines Resources | -11 -10 -10 ----------- Run | Scr Mat Min Matter Collected 363 | 194 111 58 Remotely . | . . . Salvage Created 517 | . 400 117 Parts 38 | . 21 17 Haulers Intercepted . | . . . Recyclers Shooed . | . . . Parts Field Recycled . | . . . Retrieved Matter . | . . . Parts Self-Destructed . | . . . Prevented . | . . . Kills | -11 -10 -10 ------- Run | Scr Mat Min Combat Hostiles Destroyed 16 | . 9 7 Guns 15 | . 8 7 Classes Destroyed 3 | . 2 1 Watcher 1 | . 1 . Swarmer 7 | . . 7 Grunt 9 | . 9 . Best Kill Streak 5 | . 5 4 Combat Bots Only 5 | . 5 4 Max Kills in Single Turn 1 | . 1 1 Gunslinging . | . . . Exploded . | . . . Melee . | . . . Uniques/NPCs Destroyed . | . . . Combat | -11 -10 -10 -------- Run | Scr Mat Min Damage Taken 942 | . 383 559 Core 250 | . 104 146 Absorbed by Shields . | . . . Core Remaining (%) 100 | 100 . . Volleys Fired 61 | . 37 24 Largest 2 | . 2 2 Hottest 105 | . 105 65 Shots Fired 82 | . 52 30 Gun 82 | . 52 30 Cannon . | . . . Launcher . | . . . Special . | . . . Kinetic 19 | . . 19 Thermal 27 | . 26 1 Explosive . | . . . Electromagnetic 36 | . 26 10 Robot Hit Streak 15 | . 15 4 Robot Miss Streak 3 | . 3 2 Penetration Max . | . . . Secondary Targets 2 | . 1 1 Max Gunslinging Chain 1 | . 1 1 Shots Hit Robots 60 | . 42 18 Core Hits 24 | . 17 7 Critical Hits . | . . . Critical Kills . | . . . Critical Parts Destroyed . | . . . Melee Attacks . | . . . Impact . | . . . Slashing . | . . . Piercing . | . . . Sneak Attacks . | . . . Combat Hostiles . | . . . Follow-up Attacks . | . . . Damage Inflicted 720 | . 557 163 Guns 718 | . 555 163 Cannons . | . . . Explosions . | . . . Melee . | . . . Ramming 2 | . 2 . Kinetic 97 | . . 97 Thermal 252 | . 252 . Explosive . | . . . Electromagnetic 369 | . 303 66 Impact . | . . . Slashing . | . . . Piercing . | . . . Highest Corruption . | . . . Average Corruption . | . . . Corruption Purged . | . . . Overload Shots . | . . . Overflow Damage . | . . . Projectiles . | . . . Explosions . | . . . Melee . | . . . Knockbacks . | . . . Impact . | . . . Kinetic . | . . . Secondary . | . . . Self-Inflicted Damage 1 | . 1 . Shots . | . . . Rammed 2 | . 1 1 Targets Rammed 2 | . 1 1 Kicked . | . . . Crushed . | . . . Highest Temperature 247 | . 247 24 Average Temperature 99 | . 123 14 Received Heat Transfer 438 | . 198 240 Effects 2 | . 2 . Interference 2 | . 2 . Siege Activations . | . . . Robots Corrupted 1 | . 1 . Combat Hostiles 1 | . 1 . Parts Fried 2 | . 2 . Impact Corruptions . | . . . Robots Melted . | . . . Combat Hostiles . | . . . Parts Melted 2 | . 2 . Heat Transferred 644 | . 644 . Parts Sabotaged . | . . . Parts Stolen . | . . . Parts Stripped . | . . . Power Chain Reactions . | . . . Missiles Intercepted . | . . . Alert | -11 -10 -10 ------- Run | Scr Mat Min Peak Influence 214 | . 175 214 Initial 24 | . . 24 Average 89 | . 71 145 Maximum Alert Level 1 | . . 1 Low Security (%) 90 | 100 100 69 Level 1 9 | . . 30 Level 2 . | . . . Level 3 . | . . . Level 4 . | . . . Level 5 . | . . . High Security . | . . . Max Security . | . . . Squads Dispatched 2 | . 2 . Investigation 1 | . 1 . Extermination . | . . . Reinforcement 1 | . 1 . Assault . | . . . Garrison . | . . . Intercept . | . . . Construction Impeded . | . . . Haulers Reinforced . | . . . Stealth | -11 -10 -10 --------- Run | Scr Mat Min Distress Signals 1 | . 1 . Communications Jammed . | . . . Distress Signals . | . . . Times Spotted 29 | . 16 13 Peak Tracking Total 10 | . 5 10 Tactical Retreats 4 | . 2 2 Traps | -11 -10 -10 ------- Run | Scr Mat Min Traps Triggered 1 | . 1 . Indirectly . | . . . Trap Hack Attempts . | . . . Triggered . | . . . Disarmed . | . . . Reprogrammed . | . . . Reused . | . . . Traps Extracted . | . . . Installed . | . . . Triggered . | . . . Machines | -11 -10 -10 ---------- Run | Scr Mat Min Machines Disabled . | . . . Max in Single Turn . | . . . Machines Sabotaged . | . . . Garrisons Compromised . | . . . Overloaded Fab Kills . | . . . Fab Network Shutdowns . | . . . Hacking | -11 -10 -10 --------- Run | Scr Mat Min Machines Accessed 3 | . 3 . Terminals 2 | . 2 . Fabricators . | . . . Repair Stations . | . . . Recycling Units 1 | . 1 . Scanalyzers . | . . . Garrison Access . | . . . Total Hacks 6 | . 6 . Successful 2 | . 2 . Failed 4 | . 4 . Catastrophic . | . . . Database Lockouts . | . . . Manual . | . . . Terminals 5 | . 5 . Fabricators . | . . . Repair Stations . | . . . Recycling Units 1 | . 1 . Scanalyzers . | . . . Garrison Access . | . . . Terminal Hacks 1 | . 1 . Recall Investigation 1 | . 1 . Fabricator Hacks . | . . . Repair Station Hacks . | . . . Recycling Unit Hacks 1 | . 1 . Report Inventory 1 | . 1 . Scanalyzer . | . . . Garrison Access Hacks . | . . . Unauthorized Hacks . | . . . Terminals . | . . . Fabricators . | . . . Repair Stations . | . . . Recycling Units . | . . . Scanalyzers . | . . . Garrison Access . | . . . Data Cores Recovered . | . . . Used . | . . . Hacking Detections 3 | . 3 . Full Trace Events . | . . . Feedback Events . | . . . Feedback Blocked . | . . . Robot Schematics Acquired . | . . . Robots Built . | . . . Matter . | . . . Time . | . . . Total Robot Build Rating . | . . . Part Schematics Acquired . | . . . Parts Built . | . . . Matter . | . . . Time . | . . . Total Part Build Rating . | . . . Parts Repaired . | . . . Time . | . . . Parts Recycled . | . . . Recycled Matter . | . . . Retrieved Matter . | . . . Retrieved Components . | . . . Parts Scanalyzed . | . . . Part Schematics Acquired . | . . . Parts Damaged . | . . . Bothacking | -11 -10 -10 ------------ Run | Scr Mat Min Used RIF Installer . | . . . Robots Hacked . | . . . Non-combat . | . . . Combat . | . . . Robot Hacks Applied . | . . . Relay Couplers Released . | . . . Robots Rewired . | . . . Allies Hacked . | . . . Hacks Repelled . | . . . Allies | -11 -10 -10 -------- Run | Scr Mat Min Total Allies . | . . . Largest Group . | . . . Highest-Rated Group . | . . . Highest-Rated Ally . | . . . Total Orders . | . . . Ally Attacks . | . . . Total Damage . | . . . Kills . | . . . Allies Corrupted . | . . . Allies Melted . | . . . Intel | -11 -10 -10 ------- Run | Scr Mat Min Robot Analysis Total . | . . . Derelict Logs Recovered 1 | . . 1 Drone Launches . | . . . Drone Recoveries . | . . . Exploration | -11 -10 -10 ------------- Run | Scr Mat Min Turns Passed 974 | 74 589 311 Spaces Moved 679 | 62 407 210 Core 7 | 7 . . Treads . | . . . Legs 207 | . . 207 Wheels 465 | 55 407 3 Hover . | . . . Flight . | . . . Fastest Speed 50 | 50 100 100 Average Speed 106 | 94 101 119 Slowest Speed 120 | 100 110 120 Overloaded Moves . | . . . Propulsion Burnouts . | . . . Robots Hopped . | . . . Cave-ins Triggered . | . . . Exploration Rate (%) 39 | 4 58 56 Regions Visited 2 Branch Regions 1 Pre-discovered Areas . | . . . Known Exits Taken . | . . . Unknown Exits Taken 2 | 1 1 . Scrap Searched 2 | . . 2 Spaces Dug . | . . . Terrain Destroyed . | . . . Melee . | . . . Projectile . | . . . AOE . | . . . Terrain Rammed . | . . . Walls Destroyed . | . . . Machines Disabled . | . . . Actions | -11 -10 -10 --------- Run | Scr Mat Min Total 851 | 77 531 243 Wait 74 | . 74 . Move 677 | 61 406 210 Hop . | . . . Pick Up 19 | 10 7 2 Fast Attach 2 | . 1 1 Attach 13 | 6 3 4 Detach . | . . . Swap 2 | . 2 . Drop 1 | . . 1 Fire 61 | . 37 24 Melee . | . . . Ram 1 | . 1 . Kick 1 | . . 1 Crush . | . . . Escape Stasis . | . . . Rewire . | . . . Trap . | . . . Miscellaneous . | . . . Route ------- -11/Scrapyard -10/Materials (discovered 2 exits: [*Mat] / [*Min]) -10/Mines History --------- Turn | Location | Event 21 | -11/Scrapyard | Discovered new exit (range 15) 75 | -11/Scrapyard | Entered Materials 305 | -10/Materials | Lost 4 parts (1p1n2w) 329 | -10/Materials | Build established: Mutant 380 | -10/Materials | Discovered new exit (range 3) 410 | -10/Materials | Discovered new exit (range 15) 664 | -10/Materials | Entered Mines 673 | -10/Mines | Core integrity fell below 50% 828 | -10/Mines | Assembled infested the area 833 | -10/Mines | Assisted by a Guerilla fighting off Assembled 908 | -10/Mines | Learned 2 Materials zone layouts 946 | -10/Mines | Core integrity fell below 20% 975 | -10/Mines | Destroyed by as-84538 with Assembled F-torch Last Messages --------------- 00874_ S-10 Pest destroyed. 00876_ Acquired 7 matter. 00879_ Acquired Lgt. Assault Rifle. 00908_ Acquired derelict log, extracted data. Data stored: Materials zone layouts (x2). 00915_ Searching scrap... 00915_ Found Aluminum Leg. 00915_ Found Targeting Computer. 00915_ Found Lgt. Armor Plating. 00915_ Found Signal Interpreter. 00915_ Found 33 Matter. 00916_ Acquired 20 matter. 00917_ K-01 Serf collects debris. 00920_ T-07 Excavator destroyed. 00962_ Lgt. Assault Rifle destroyed. 00965_ T-07 Excavator is excavating. 00968_ Lgt. Ion Engine destroyed. 00970_ T-07 Excavator is excavating. 00971_ Lgt. Assault Rifle destroyed. 00974_ T-07 Excavator is excavating. Map ----- +----------------------------------------------------+ | | | | | | | | | | | | | | | | | | | | | | | | | | | | | | | | | | | | | | | ?????????????????????????????????????????????????? | | ?????????????????????????????????????????????????? | | ?????????????????????????????????????????????????? | | ?????????????????????????????????????????????????? | | ??????????????????####???????????????????????????? | | ?????????????###### ######??????????????????????? | | ????????????# @##### ??????????????? | | ????????????# t ??????????????? | | ????????????## ## #?????????????? | | ?????????????##??## a ##### #????????????? | | ??????????????????##a #?????? #????????????? | | ???????????????????## #?????????#????????????? | | ????????????????????# ##??????????????????????? | | ???????????????###### #???????????????????????? | | ???????????????# ##???????????????????????? | | ???????????????# #????????????????????????? | | ???????????????# #### #???????????????????????? | | ???????????????# #??# #???????????????????? | | ??????????????## #??## """ #??????????????????? | | ?????????????## ##??# """ #?????????????????? | | ????????????## #??# """ ##?????????????????? | | ????????????# #??? ##??????????????????? | | ????????????# ### #?????????????????????? | | ???????????## ##??????????????????????# | | ????????#### ##???????????????????????# | | ???????## #### ##????????????????????#???# | | ??????## ##???# #?????????????????????# ?#" | | ??????# ##?????####???????????????????### ##" | | ??????# ##????????????????????????????? | | ??????## ##????????????????????????????? | | ???##### ##????????????????????????????? | +----------------------------------------------------+ Best States ------------- Heat Dissipation 25 Energy Generation 10 Energy Capacity 250 Matter Stores 300 Matter Capacity 300 Sight Range 16 Terrain Scan Density 10 Evasion (%) 40 Targeting Accuracy 5 Item Schematics ----------------- None Robot Schematics ------------------ None Fabricated ------------ Nothing Alien Tech Used ----------------- None Achievements -------------- None Challenges ------------ None Game ------ Seed OmegaAngularGun Manual? 0 Play Time 00:10:57 Cumulative 10.6 hours Start 2021.08.21 @ 19:06:09 End 2021.08.21 @ 19:16:26 Sessions 1 Manual Loads 0 Difficulty Rogue Special Mode None Game No. 21 Rogue 21 Adventurer 0 Explorer 0 Win Type - Total 0 Types 0/0/0/0/0/0/0/0/0 Lore% 8 Gallery% 17 Achievement% 17 Wizard Run 0 Options --------- ASCII 0 Keyboard 0 Movement Mouse Keybinds 0 Fullscreen 1 Font 18/SmallcapsGlow Map View 76x50 Tactical HUD 1 Map Filters NONE Filters NONE Steam 1 RUN: aeeade14-f037-4a2f-ba82-1ff38fc3794d